fUSD/lending_fUSD_20260127
["ID","MTS","AMOUNT","RATE_DAILY","PERIOD"]
[403726210,1769509849437,-151.0,0.00043325,120]
[403726211,1769509849447,-151.0,0.00043325,120]
[403726212,1769509849456,-151.0,0.00043325,120]
[403726213,1769509849465,-151.0,0.00043325,120]
[403726214,1769509849475,-151.0,0.00043325,120]
[403726215,1769509849484,-151.0,0.00043325,120]
[403726216,1769509849494,-151.0,0.00043325,120]
[403726217,1769509849503,-151.0,0.00043325,120]
[403726218,1769509849512,-151.0,0.00043325,120]
[403726219,1769509849522,-151.0,0.00043325,120]
[403726220,1769509849531,-151.0,0.00043325,120]
[403726221,1769509849541,-151.0,0.00043325,120]
[403726222,1769509849551,-151.0,0.00043325,120]
[403726223,1769509849563,-151.0,0.00043325,120]
[403726224,1769509849573,-151.0,0.00043325,120]
[403726225,1769509849583,-205.335969,0.00043325,120]
[403726226,1769509849592,-151.0,0.00043325,120]
[403726227,1769509849601,-151.0,0.00043325,120]
[403726229,1769509849610,-151.0,0.00043325,120]
[403726230,1769509849620,-151.0,0.00043325,120]
[403726232,1769509849629,-151.0,0.00043325,120]
[403726234,1769509849638,-151.0,0.00043325,120]
[403726235,1769509849648,-151.0,0.00043325,120]
[403726237,1769509849656,-151.0,0.00043325,120]
[403726239,1769509849665,-151.0,0.00043325,120]
[403726241,1769509849674,-151.0,0.00043325,120]
[403726243,1769509849684,-151.0,0.00043325,120]
[403726246,1769509849694,-151.0,0.00043325,120]
[403726247,1769509849703,-151.0,0.00043325,120]
[403726249,1769509849714,-151.0,0.00043325,120]
[403726250,1769509849725,-151.0,0.00043325,120]
[403726251,1769509849738,-151.0,0.00043325,120]
[403726252,1769509849747,-210.432735,0.00043325,120]
[403726253,1769509849757,-151.0,0.00043325,120]
[403726254,1769509849766,-151.0,0.00043325,120]
[403726255,1769509849778,-151.0,0.00043325,120]
[403726256,1769509849787,-151.0,0.00043325,120]
[403726257,1769509849796,-151.0,0.00043325,120]
[403726258,1769509849805,-151.0,0.00043325,120]
[403726260,1769509849816,-151.0,0.00043325,120]
[403726262,1769509849826,-151.0,0.00043325,120]
[403726264,1769509849835,-151.0,0.00043325,120]
[403726266,1769509849844,-151.0,0.00043325,120]
[403726268,1769509849854,-151.0,0.00043325,120]
[403726270,1769509849863,-151.0,0.00043325,120]
[403726271,1769509849872,-151.0,0.00043325,120]
[403726272,1769509849882,-200.524297,0.00043325,120]
[403726273,1769509849891,-151.0,0.00043325,120]
[403726274,1769509849900,-151.0,0.00043325,120]
[403726275,1769509849910,-151.0,0.00043325,120]
[403726276,1769509849920,-151.0,0.00043325,120]
[403726277,1769509849929,-151.0,0.00043325,120]
[403726278,1769509849938,-151.0,0.00043325,120]
[403726279,1769509849947,-151.0,0.00043325,120]
[403726280,1769509849956,-151.0,0.00043325,120]
[403726281,1769509849966,-151.0,0.00043325,120]
[403726282,1769509849976,-151.0,0.00043325,120]
[403726283,1769509849985,-151.0,0.00043325,120]
[403726284,1769509849995,-151.0,0.00043325,120]
[403726285,1769509850004,-282.243659,0.00043325,120]
[403726286,1769509850014,-151.0,0.00043325,120]
[403726287,1769509850023,-151.0,0.00043325,120]
[403726288,1769509850032,-151.0,0.00043325,120]
[403726289,1769509850041,-151.0,0.00043325,120]
[403726290,1769509850051,-151.0,0.00043325,120]
[403726291,1769509850060,-151.0,0.00043325,120]
[403726292,1769509850070,-151.0,0.00043325,120]
[403726293,1769509850079,-151.0,0.00043325,120]
[403726294,1769509850089,-151.0,0.00043325,120]
[403726295,1769509850099,-151.0,0.00043325,120]
[403726296,1769509850108,-151.0,0.00043325,120]
[403726297,1769509850117,-151.0,0.00043325,120]
[403726298,1769509850127,-1620.868383,0.00043325,14]
[403726299,1769509850136,-151.0,0.00043325,120]
[403726300,1769509850146,-1620.868383,0.00043325,14]
[403726301,1769509850155,-151.0,0.00043325,120]
[403726302,1769509850164,-1620.868383,0.00043325,14]
[403726303,1769509850174,-151.0,0.00043325,120]
[403726304,1769509850183,-1620.868383,0.00043325,14]
[403726305,1769509850193,-157.502154,0.00043325,120]
[403726306,1769509850203,-1620.868383,0.00043325,14]
[403726307,1769509850212,-1620.868383,0.00043325,14]
[403726308,1769509850222,-1620.868383,0.00043325,14]
[403726309,1769509850232,-1620.868383,0.00043325,14]
[403726310,1769509850242,-1620.868383,0.00043325,14]
[403726311,1769509850252,-1620.868383,0.00043325,14]
[403726312,1769509850261,-1620.868383,0.00043325,14]
[403726313,1769509850271,-1620.868383,0.00043325,14]
[403726314,1769509850352,-1620.868383,0.00043325,14]
[403726315,1769509850362,-1620.868383,0.00043325,14]
[403726316,1769509850372,-1620.868383,0.00043325,14]
[403726317,1769509850381,-1620.868383,0.00043325,14]
[403726318,1769509850390,-1620.868383,0.00043325,14]
[403726319,1769509850399,-1620.868383,0.00043325,14]
[403726320,1769509850409,-1620.868383,0.00043325,14]
[403726321,1769509850419,-1620.868388,0.00043325,14]
[403726322,1769509850428,-213.813458,0.00043325,120]
[403726323,1769509850438,-213.813458,0.00043325,120]
[403726324,1769509850448,-213.813458,0.00043325,120]
[403726325,1769509850457,-213.813458,0.00043325,120]
[403726326,1769509850468,-213.813458,0.00043325,120]
[403726327,1769509850478,-213.813458,0.00043325,120]
[403726328,1769509850489,-213.813458,0.00043325,120]
[403726329,1769509850499,-213.813458,0.00043325,120]
[403726330,1769509850508,-213.813458,0.00043325,120]
[403726331,1769509850516,-213.813458,0.00043325,120]
[403726332,1769509850526,-213.813458,0.00043325,120]
[403726333,1769509850535,-213.813458,0.00043325,120]
[403726334,1769509850544,-213.813458,0.00043325,120]
[403726335,1769509850554,-213.813458,0.00043325,120]
[403726336,1769509850563,-213.813458,0.00043325,120]
[403726337,1769509850572,-213.813458,0.00043325,120]
[403726338,1769509850581,-213.813458,0.00043325,120]
[403726339,1769509850589,-151.0,0.00043325,120]
[403726340,1769509850599,-213.813458,0.00043325,120]
[403726341,1769509850607,-151.0,0.00043325,120]
[403726342,1769509850616,-213.813458,0.00043325,120]
[403726343,1769509850624,-151.0,0.00043325,120]
[403726344,1769509850634,-151.0,0.00043325,120]
[403726345,1769509850643,-213.813462,0.00043325,120]
[403726346,1769509850654,-151.0,0.00043325,120]
[403726347,1769509850664,-151.0,0.00043325,120]
[403726348,1769509850674,-172.679769,0.00043325,120]
[403726349,1769509850685,-172.679769,0.00043325,120]
[403726350,1769509850695,-172.679769,0.00043325,120]
[403726351,1769509850704,-172.679769,0.00043325,120]
[403726352,1769509850714,-172.679769,0.00043325,120]
[403726353,1769509850722,-172.679769,0.00043325,120]
[403726354,1769509850732,-172.679769,0.00043325,120]
[403726355,1769509850742,-172.679769,0.00043325,120]
[403726356,1769509850755,-172.679769,0.00043325,120]
[403726357,1769509850766,-172.679769,0.00043325,120]
[403726358,1769509850777,-172.679769,0.00043325,120]
[403726359,1769509850787,-172.679769,0.00043325,120]
[403726360,1769509850797,-172.679769,0.00043325,120]
[403726361,1769509850807,-172.679769,0.00043325,120]
[403726362,1769509850817,-172.679769,0.00043325,120]
[403726363,1769509850827,-172.679769,0.00043325,120]
[403726364,1769509850837,-172.679769,0.00043325,120]
[403726365,1769509850846,-172.679769,0.00043325,120]
[403726366,1769509850856,-172.679769,0.00043325,120]
[403726367,1769509850866,-172.679767,0.00043325,120]
[403726368,1769509850875,-151.0,0.00043325,120]
[403726369,1769509850884,-151.0,0.00043325,120]
[403726370,1769509850894,-151.0,0.00043325,120]
[403726371,1769509850905,-151.0,0.00043325,120]
[403726372,1769509850914,-151.0,0.00043325,120]
[403726373,1769509850923,-151.0,0.00043325,120]
[403726374,1769509850932,-216.410462,0.00043325,120]
[403726375,1769509850943,-501.079423,0.00043325,120]
[403726376,1769509850952,-501.079423,0.00043325,120]
[403726377,1769509850962,-501.079423,0.00043325,120]
[403726378,1769509850973,-501.079423,0.00043325,120]
[403726379,1769509850984,-501.079423,0.00043325,120]
[403726380,1769509850994,-501.079423,0.00043325,120]
[403726381,1769509851004,-254.249208,0.00043325,7]
[403726382,1769509851013,-501.079423,0.00043325,120]
[403726383,1769509851024,-254.249208,0.00043325,7]
[403726384,1769509851033,-501.079423,0.00043325,120]
[403726385,1769509851042,-254.249208,0.00043325,7]
[403726386,1769509851053,-501.079423,0.00043325,120]
[403726387,1769509851062,-254.249208,0.00043325,7]
[403726388,1769509851071,-501.079423,0.00043325,120]
[403726389,1769509851081,-254.249208,0.00043325,7]
[403726390,1769509851091,-501.079423,0.00043325,120]
[403726391,1769509851100,-254.249208,0.00043325,7]
[403726392,1769509851109,-501.079423,0.00043325,120]
[403726393,1769509851118,-254.249208,0.00043325,7]
[403726394,1769509851127,-501.079423,0.00043325,120]
[403726395,1769509851136,-254.249208,0.00043325,7]
[403726396,1769509851145,-501.079423,0.00043325,120]
[403726397,1769509851154,-254.249208,0.00043325,7]
[403726398,1769509851163,-501.079423,0.00043325,120]
[403726399,1769509851172,-254.249208,0.00043325,7]
[403726400,1769509851181,-501.079423,0.00043325,120]
[403726401,1769509851191,-254.249208,0.00043325,7]
[403726402,1769509851200,-501.079423,0.00043325,120]
[403726403,1769509851210,-254.249208,0.00043325,7]
[403726404,1769509851219,-501.079423,0.00043325,120]
[403726405,1769509851229,-254.249208,0.00043325,7]
[403726406,1769509851238,-501.079423,0.00043325,120]
[403726407,1769509851247,-254.249208,0.00043325,7]
[403726408,1769509851257,-501.079431,0.00043325,120]
[403726409,1769509851267,-254.249208,0.00043325,7]
[403726410,1769509851277,-254.249208,0.00043325,7]
[403726411,1769509851287,-254.249208,0.00043325,7]
[403726412,1769509851298,-254.249208,0.00043325,7]
[403726413,1769509851307,-254.249208,0.00043325,7]
[403726414,1769509851316,-254.24921576,0.00043325,7]
[403726415,1769509851326,-454.21402131,0.00043325,31]
[403726416,1769509851338,-300.0,0.00043327,30]
[403726417,1769509851347,-671.18944489,0.00043327,30]
[403726418,1769509851358,-151.0,0.00043328,120]
[403726419,1769509851367,-151.0,0.00043328,120]
[403726420,1769509851378,-151.0,0.00043328,120]
[403726421,1769509851390,-151.0,0.00043328,120]
[403726422,1769509851401,-151.0,0.00043328,120]
[403726423,1769509851411,-151.0,0.00043328,120]
[403726424,1769509851421,-151.0,0.00043328,120]
[403726425,1769509851431,-151.0,0.00043328,120]
[403726426,1769509851440,-151.0,0.00043328,120]
[403726427,1769509851449,-151.0,0.00043328,120]
[403726428,1769509851458,-151.0,0.00043328,120]
[403726429,1769509851467,-151.0,0.00043328,120]
[403726430,1769509851476,-151.0,0.00043328,120]
[403726431,1769509851484,-151.0,0.00043328,120]
[403726432,1769509851493,-151.0,0.00043328,120]
[403726433,1769509851502,-151.0,0.00043328,120]
[403726434,1769509851511,-236.529699,0.00043328,120]
[403726435,1769509851520,-151.0,0.00043328,120]
[403726436,1769509851529,-207.70793,0.00043328,120]
[403726437,1769509851539,-3559.83656498,0.00043328,60]
[403726438,1769509851549,-1759533.10356208,0.00043328,10]
[403726439,1769509852123,-766.04604356,0.00043328,10]
[403726440,1769509852161,-145412.42609555,0.00043328,10]
[403726441,1769509852174,-2512.3783548,0.00043328,10]
[403726442,1769509852402,-509.28856833,0.00031243,2]
[403726443,1769509852412,-160.83191327,0.00031243,2]
[403726444,1769509852421,-1893.04854785,0.00043328,10]
[403726445,1769509852431,-6718.71277972,0.00043328,10]
[403726446,1769509852487,-3501.92849186,0.00043328,10]
[403726447,1769509852768,-205.40520946,0.00017982,2]
[403726448,1769509852778,-759.70403484,0.00043328,10]
[403726449,1769509852790,-29796.08474845,0.00043328,10]
[403726450,1769509852800,-1530.7709169,0.00043328,10]
[403726451,1769509852935,-10520.1,0.00043328,10]
[403726452,1769509852955,-538.9811538,0.00043328,10]
[403726453,1769509852978,-670.1204816,0.00033335,2]
[403726454,1769509852986,-2391.41303383,0.00043328,10]
[403726455,1769509852997,-309.49688996,0.00043328,10]
[403726540,1769510198093,745.45550822,0.00016227,2]
[403726576,1769510353568,-500.0,0.00016294,2]
[403726577,1769510353591,-10.65781059,0.00016294,2]
[403726578,1769510403896,287.0,0.00016294,2]
[403726590,1769510456740,333.51,0.00019178,30]
[403726591,1769510459123,-158.68872341,0.00016294,2]
[403726592,1769510459145,-130.10893282,0.00016311,2]
[403726617,1769510760386,75.57707223,0.00013825,2]
[403726618,1769510760416,3785.73292777,0.00013825,2]
[403726701,1769511031690,-151.67415818,0.0001631,2]
[403726703,1769511031699,-553.21680282,0.00016373,2]
[403726709,1769511031742,-29.20536425,0.00016373,2]
[403726710,1769511031751,-337.06630886,0.00016373,2]
[403726711,1769511031761,-227.41392532,0.00016393,2]
[403726712,1769511031773,-278.25607468,0.00016393,2]
[403726713,1769511031783,-300.0,0.00016449,2]
[403726714,1769511031792,-150.00154191,0.00016458,2]
[403726715,1769511031802,-202.12238341,0.00016458,2]
[403726716,1769511031850,-294.84795539,0.00016458,2]
[403726717,1769511031859,-300.0,0.00016459,2]
[403726718,1769511031869,-1200.0,0.00016459,2]
[403726719,1769511031878,-98366.01464324,0.0001646,2]
[403726720,1769511031889,-11645.09849619,0.0001646,2]
[403726721,1769511031911,-3443.75600812,0.0001646,2]
[403726722,1769511031925,-1305.0,0.0001646,2]
[403726748,1769511037760,-990.98677168,0.0001646,2]
[403726749,1769511037829,-292.696336,0.0001646,2]
[403726750,1769511037864,-3623.96507186,0.0001646,2]
[403726751,1769511037886,-13280.53393879,0.0001646,2]
[403726752,1769511037918,-975.13,0.0001646,2]
[403726753,1769511037972,-9598.76675237,0.0001646,2]
[403726931,1769511039913,-856478.05198175,0.0001646,2]
[403726933,1769511039923,-496.9703388,0.00016516,2]
[403726935,1769511039932,-500.0,0.00016558,2]
[403726937,1769511039941,-500.0,0.00016558,2]
[403726939,1769511039950,-500.0,0.00016558,2]
[403726941,1769511039961,-500.0,0.00016558,2]
[403726943,1769511039970,-500.0,0.00016558,2]
[403726945,1769511039980,-500.0,0.00016558,2]
[403726947,1769511039990,-500.0,0.00016558,2]
[403726949,1769511039999,-500.0,0.00016558,2]
[403726950,1769511040009,-500.0,0.00016558,2]
[403726952,1769511040019,-500.0,0.00016558,2]
[403726954,1769511040029,-500.0,0.00016558,2]
[403726956,1769511040039,-500.0,0.00016558,2]
[403726959,1769511040048,-500.0,0.00016558,2]
[403726961,1769511040057,-500.0,0.00016558,2]
[403726963,1769511040067,-500.0,0.00016558,2]
[403726965,1769511040076,-500.0,0.00016558,2]
[403726967,1769511040086,-290.58256799,0.00016558,2]
[403726969,1769511040096,-500.0,0.00016558,2]
[403726971,1769511040105,-500.0,0.00016558,2]
[403726973,1769511040115,-500.0,0.00016558,2]
[403726975,1769511040124,-500.0,0.00016558,2]
[403726977,1769511040134,-511.86,0.00016558,2]
[403726979,1769511040144,-1769.8653,0.0001656,2]
[403726980,1769511040154,-158.43715577,0.00016562,2]
[403726982,1769511040162,-1446.07863545,0.00016562,2]
[403726984,1769511040172,-500.0,0.00016565,2]
[403726987,1769511040181,-496.9703388,0.00016573,2]
[403726989,1769511040194,-2998.11577698,0.00016573,2]
[403726991,1769511040207,-214.39057836,0.00016573,2]
[403726993,1769511040217,-500.0,0.00016659,5]
[403726995,1769511040226,-1050.88046112,0.00016659,5]
[403726997,1769511040236,-500.0,0.00016659,2]
[403726999,1769511040245,-1052.958,0.00016659,2]
[403727001,1769511040254,-194.866,0.00016659,2]
[403727002,1769511040263,-573.37963552,0.00016659,2]
[403727005,1769511040273,-300.70961423,0.00016659,2]
[403727007,1769511040284,-300.0,0.00016659,2]
[403727009,1769511040294,-300.0,0.00016659,2]
[403727011,1769511040303,-150.43874916,0.00016659,2]
[403727013,1769511040313,-500.0,0.00016659,2]
[403727015,1769511040321,-547.60576394,0.00016659,2]
[403727017,1769511040331,-3240.0,0.00016673,2]
[403727019,1769511040340,-1000.0,0.00016762,2]
[403727021,1769511040350,-200.0,0.00016811,2]
[403727023,1769511040359,-511.86,0.00016832,2]
[403727025,1769511040368,-289.99008962,0.00016861,2]
[403727027,1769511040378,-500.0,0.00016861,2]
[403727029,1769511040387,-511.30863973,0.00016861,2]
[403727031,1769511040396,-500.0,0.00016861,2]
[403727033,1769511040405,-500.0,0.00016861,2]
[403727035,1769511040414,-500.0,0.00016861,2]
[403727037,1769511040423,-500.0,0.00016861,2]
[403727039,1769511040433,-358.07323626,0.00016861,2]
[403727040,1769511040442,-674.52653483,0.000169,2]
[403727043,1769511040452,-674.52653482,0.000169,2]
[403727044,1769511040462,-674.52653482,0.000169,2]
[403727047,1769511040472,-400.0,0.00016916,2]
[403727049,1769511040482,-511.86,0.00017106,2]
[403727051,1769511040491,-1000.0,0.0001734,2]
[403727052,1769511040501,-511.86,0.0001738,2]
[403727055,1769511040511,-340.37,0.00017533,2]
[403727057,1769511040521,-400.0,0.0001755,2]
[403727059,1769511040530,-511.86836042,0.00017654,2]
[403727061,1769511040539,-500.0,0.00017739,2]
[403727063,1769511040548,-150.00154191,0.00017792,2]
[403727065,1769511040557,-193.0,0.00017941,2]
[403727067,1769511040568,-189.72457283,0.00017941,2]
[403727069,1769511040581,-444.06609553,0.00017941,2]
[403727071,1769511040590,-250.0,0.00017941,2]
[403727073,1769511040600,-250.0,0.00017941,2]
[403727075,1769511040609,-420.0,0.00017987,2]
[403727077,1769511040618,-1680.0,0.00018077,2]
[403727079,1769511040627,-400.0,0.00018185,2]
[403727081,1769511040636,-400.0,0.00018819,2]
[403727083,1769511040645,-165.75,0.00018957,2]
[403727085,1769511040655,-165.75,0.00019038,2]
[403727087,1769511040664,-33506.56,0.00019072,2]
[403727089,1769511040674,-165.75,0.00019119,2]
[403727092,1769511040684,-150.00154191,0.00019125,6]
[403727094,1769511040694,-199.0,0.00019178,2]
[403727096,1769511040704,-500.0,0.00019178,2]
[403727098,1769511040713,-333.74833529,0.00019178,2]
[403727100,1769511040722,-500.0,0.00019178,2]
[403727102,1769511040731,-500.0,0.00019178,2]
[403727104,1769511040741,-500.0,0.00019178,2]
[403727106,1769511040750,-165.75,0.000192,2]
[403727108,1769511040759,-165.75,0.00019282,2]
[403727110,1769511040769,-165.75,0.00019363,2]
[403727112,1769511040778,-165.75,0.00019444,2]
[403727114,1769511040787,-400.0,0.00019453,2]
[403727116,1769511040797,-1000.0,0.00019507,2]
[403727117,1769511040807,-1446.07863536,0.00019525,2]
[403727118,1769511040816,-165.75,0.00019525,2]
[403727119,1769511040825,-2998.11577689,0.00019535,2]
[403727120,1769511040835,-720.0,0.00019853,2]
[403727121,1769511040844,-150.00154191,0.00020459,10]
[403727122,1769511040854,-150.0,0.00020999,2]
[403727123,1769511040865,-151.22326793,0.00020999,2]
[403727124,1769511040874,-150.0,0.00021,7]
[403727155,1769511041278,-1000.0,0.00021675,2]
[403727157,1769511041291,-150.00154191,0.00021793,15]
[403727159,1769511041300,-158.43715575,0.00021895,2]
[403727161,1769511041309,-534.25,0.00022179,2]
[403727163,1769511041318,-438.94,0.00022453,2]
[403727165,1769511041327,-1446.07863536,0.00022488,2]
[403727167,1769511041336,-2998.11577689,0.00022497,2]
[403727169,1769511041345,-154.7,0.000225,7]
[403727171,1769511041354,-24451.51,0.00022562,2]
[403727173,1769511041363,-9999.99,0.00022562,2]
[403727175,1769511041372,-7741.57,0.00022562,2]
[403727177,1769511041380,-9451.43,0.00022562,2]
[403727179,1769511041390,-4727.2,0.00022562,2]
[403727180,1769511041398,-299.99,0.00022562,7]
[403727182,1769511041407,-999.99,0.00022562,2]
[403727184,1769511041416,-150.99,0.00022562,2]
[403727186,1769511041425,-9999.99,0.00022562,2]
[403727188,1769511041434,-150.00154191,0.00023126,19]
[403727190,1769511041444,-1000.0,0.00023842,2]
[403727192,1769511041453,-1082.81434374,0.00024123,2]
[403727194,1769511041462,-333.51,0.00024225,30]
[403727196,1769511041472,-470.92786474,0.00024285,2]
[403727198,1769511041481,-150.00154191,0.0002446,24]
[403727200,1769511041490,-1000.0,0.00024658,2]
[403727202,1769511041499,-150.0,0.00024658,2]
[403727204,1769511041509,-88088.4055747,0.000249,3]
[403727206,1769511041517,-392.0,0.00025445,2]
[403727207,1769511041527,-1446.07863536,0.00025451,2]
[403727208,1769511041535,-2998.11577689,0.00025459,2]
[403727209,1769511041544,-392.0,0.00025562,2]
[403727210,1769511041553,-785.0,0.00025568,7]
[403727211,1769511041562,-392.0,0.0002559,2]
[403727212,1769511041571,-3861.31,0.00025606,2]
[403727213,1769511041580,-392.0,0.00025618,2]
[403727214,1769511041589,-150.00154191,0.00025793,28]
[403727215,1769511041598,-800.0,0.0002581,9]
[403727216,1769511041607,-800.0,0.0002581,9]
[403727217,1769511041616,-800.0,0.0002581,9]
[403727218,1769511041625,-800.0,0.0002581,9]
[403727219,1769511041634,-800.0,0.0002581,9]
[403727220,1769511041644,-800.0,0.0002581,9]
[403727221,1769511041653,-800.0,0.0002581,9]
[403727222,1769511041662,-800.0,0.0002581,9]
[403727224,1769511041672,-392.0,0.00025876,2]
[403727226,1769511041681,-2516.81158785,0.0002591,3]
[403727227,1769511041690,-392.0,0.0002592,2]
[403727228,1769511041699,-1000.0,0.0002601,2]
[403727229,1769511041709,-392.0,0.00026016,2]
[403727230,1769511041718,-392.0,0.00026037,2]
[403727231,1769511041727,-392.0,0.00026154,2]
[403727232,1769511041736,-154.7,0.000262,7]
[403727233,1769511041745,-392.0,0.00026279,2]
[403727234,1769511041754,-785.0,0.00026452,2]
[403727235,1769511041763,-5888.0,0.00026518,2]
[403727236,1769511041772,-392.0,0.00026535,2]
[403727237,1769511041782,-392.0,0.0002658,2]
[403727238,1769511041791,-392.0,0.00026762,2]
[403727239,1769511041801,-2516.81158785,0.00026939,3]
[403727240,1769511041810,-615.674,0.00026949,2]
[403727241,1769511041820,-1408.0,0.00026949,2]
[403727243,1769511041831,-1340.335,0.00026949,2]
[403727244,1769511041840,-1269.0,0.00026949,2]
[403727245,1769511041851,-184.0,0.00026949,2]
[403727246,1769511041860,-916.0,0.00026949,2]
[403727247,1769511041870,-150.0,0.00026949,2]
[403727248,1769511041879,-567.0,0.00026949,2]
[403727249,1769511041889,-150.0,0.00026949,2]
[403727250,1769511041910,-150.0,0.00026949,2]
[403727251,1769511041920,-2442.0,0.00026949,2]
[403727252,1769511041930,-4831.0,0.00026949,2]
[403727253,1769511041940,-150.0,0.00027123,2]
[403727254,1769511041950,-150.00154191,0.00027127,32]
[403727255,1769511041961,-785.0,0.0002716,2]
[403727256,1769511041971,-392.0,0.00027206,2]
[403727257,1769511041981,-158.43715575,0.00027228,2]
[403727258,1769511041990,-392.0,0.00027231,7]
[403727259,1769511042000,-392.0,0.00027241,2]
[403727260,1769511042010,-392.0,0.00027265,2]
[403727261,1769511042019,-392.0,0.00027279,2]
[403727262,1769511042028,-785.0,0.00027292,2]
[403727263,1769511042038,-392.0,0.00027598,2]
[403727264,1769511042048,-392.0,0.00027626,2]
[403727265,1769511042057,-1446.07863536,0.00028414,2]
[403727266,1769511042066,-2998.11577689,0.00028421,2]
[403727267,1769511042076,-150.00154191,0.0002846,36]
[403727268,1769511042086,-165.2,0.000292,14]
[403727269,1769511042096,-2516.81158785,0.00029262,3]
[403727270,1769511042105,-333.51,0.00029272,30]
[403727271,1769511042114,-150.0,0.00029589,2]
[403727272,1769511042123,-150.00154191,0.00029794,40]
[403727273,1769511042133,-154.7,0.000298,7]
[403727274,1769511042142,-1333.0,0.00029949,2]
[403727275,1769511042151,-2442.0,0.00029949,2]
[403727276,1769511042161,-797.0257646,0.00030049,28]
[403727277,1769511042171,-195.99,0.00030411,120]
[403727278,1769511042181,-150.00154191,0.00031127,43]
[403727279,1769511042190,-1446.07863536,0.00031377,2]
[403727281,1769511042203,-2998.11577689,0.00031384,2]
[403727282,1769511042214,-150.0,0.00032055,2]
[403727283,1769511042223,-150.00154191,0.00032461,47]
[403727284,1769511042232,-158.43715575,0.0003256,2]
[403727285,1769511042242,-1333.0,0.00032949,2]
[403727286,1769511042253,-2442.0,0.00032949,2]
[403727287,1769511042262,-157.16,0.000332,14]
[403727288,1769511042272,-158.0,0.000332,14]
[403727289,1769511042282,-150.00154191,0.00033795,51]
[403727290,1769511042291,-200.0,0.00033913,2]
[403727291,1769511042301,-333.51,0.00034319,30]
[403727292,1769511042310,-1446.07863536,0.0003434,2]
[403727293,1769511042319,-2998.11577689,0.00034346,2]
[403727294,1769511042329,-983.0,0.000344,2]
[403727295,1769511042339,-256.00605124,0.00034511,2]
[403727296,1769511042348,-150.0,0.00034521,2]
[403727297,1769511042357,-5390.0,0.00034785,5]
[403727298,1769511042367,-150.00154202,0.00035128,54]
[403727299,1769511042376,-164.74,0.00035139,2]
[403727300,1769511042386,-154.7,0.000352,14]
[403727301,1769511042395,-256.8,0.00035244,2]
[403727302,1769511042406,-350.76,0.00035949,2]
[403727303,1769511042415,-162.07251533,0.00036462,58]
[403727304,1769511042425,-157.16,0.000369,14]
[403727305,1769511042435,-150.0,0.00036986,2]
[403727306,1769511042446,-235.47,0.000371,30]
[403727307,1769511042457,-34031.0,0.00037116,2]
[403727308,1769511042466,-1446.07863536,0.00037303,2]
[403727309,1769511042478,-2998.11577689,0.00037308,2]
[403727310,1769511042488,-3861.31,0.00037387,2]
[403727311,1769511042497,-461.66,0.000375,2]
[403727312,1769511042507,-162.07251533,0.00037795,62]
[403727313,1769511042518,-158.43715575,0.00037893,2]
[403727314,1769511042528,-10331.0,0.00038218,20]
[403727315,1769511042537,-10331.0,0.00038612,20]
[403727316,1769511042547,-214.39057836,0.00038906,14]
[403727317,1769511042556,-157.16,0.00039,14]
[403727318,1769511042565,-10331.0,0.00039006,20]
[403727319,1769511042574,-154.7,0.000391,14]
[403727320,1769511042583,-162.07251533,0.00039129,66]
[403727321,1769511042592,-333.51,0.00039366,120]